bitfinex/quotes_ETHUSD_20260307
["timestamp","ask_amount","ask_price","bid_price","bid_amount"]
[1772925569941,1.26864914,1970.6,1970.3,0.47802472]
[1772925570136,1.72381544,1970.6,1970.3,0.47802472]
[1772925570327,1.26864914,1970.6,1970.3,0.47802472]
[1772925572695,0.002,1970.7,1970.3,0.47802472]
[1772925573160,0.47757075,1970.7,1970.3,0.47802472]
[1772925575138,0.47757075,1970.7,1970.1,0.47282124]
[1772925575139,0.47557075,1970.5,1970.1,0.47282124]
[1772925576035,0.47557075,1970.5,1970.1,0.47182124]
[1772925577261,1.26877791,1970.4,1970.1,0.47182124]
[1772925577440,1.74434866,1970.4,1970.1,0.47182124]
[1772925579263,1.2689067,1970.2,1970.0,0.001]
[1772925579442,0.47557075,1970.1,1970.0,0.001]
[1772925581271,1.74454186,1970.1,1970.0,0.001]
[1772925581482,0.47557075,1970.0,1969.9,0.001]
[1772925591478,0.47557075,1970.1,1969.9,0.001]
[1772925594487,1.74457437,1970.1,1969.9,0.001]
[1772925594816,0.47557075,1970.0,1969.9,0.001]
[1772925595360,0.47757075,1970.0,1969.9,0.001]
[1772925596589,0.47557075,1969.9,1969.7,0.001]
[1772925597564,0.47557075,1969.9,1969.5,0.001]
[1772925597767,0.47557075,1969.7,1969.2,0.001]
[1772925597992,2.63860863,1969.9,1969.3,0.47182124]
[1772925597993,0.47557075,1969.9,1969.3,0.47182124]
[1772925598295,0.47557075,1969.9,1969.2,0.47282124]
[1772925598595,0.47557075,1969.7,1969.2,0.47282124]
[1772925600884,0.47557075,1969.5,1969.2,0.001]
[1772925602172,1.76495514,1969.7,1969.3,0.45445511]
[1772925602379,1.26915175,1969.9,1969.3,0.45445511]
[1772925602579,0.002,1970.0,1969.3,0.45445511]
[1772925602779,0.002,1970.0,1969.5,0.48776167]
[1772925607828,1.72099723,1970.4,1970.0,0.48776167]
[1772925608110,0.45221663,1970.4,1970.0,0.48776167]
[1772925609792,0.002,1970.2,1970.0,0.48776167]
[1772925614313,0.002,1970.2,1970.0,0.53852309]
[1772925615533,0.002,1970.2,1970.0,1.8075485]
[1772925616111,0.002,1970.2,1970.1,0.48776167]
[1772925618417,1.72298012,1970.5,1970.2,0.48776167]
[1772925618914,0.002,1970.5,1970.2,0.48776167]
[1772925620696,0.002,1970.5,1970.2,0.53851793]
[1772925621301,0.002,1970.5,1970.3,0.48776167]
[1772925621813,0.002,1970.4,1970.3,0.48776167]
[1772925623120,0.45421663,1970.4,1970.0,1.26903553]
[1772925623317,0.45421663,1970.4,1970.0,1.7567972]
[1772925628942,0.45421663,1970.4,1970.0,1.26903553]
[1772925629147,0.45421663,1970.4,1970.1,0.48776167]
[1772925631746,0.45421663,1970.4,1970.1,1.75670951]
[1772925632444,0.002,1970.4,1970.2,0.4582913]
[1772925633148,0.002,1970.3,1970.2,0.4582913]
[1772925633517,0.002,1970.4,1970.1,1.26994784]
[1772925633715,1.72088556,1970.6,1970.3,0.4582913]
[1772925634537,1.72085927,1970.6,1970.3,0.4582913]
[1772925637558,1.72086435,1970.6,1970.3,0.4582913]
[1772925639754,0.45220884,1970.6,1970.3,0.4582913]
[1772925646389,0.002,1970.5,1970.3,0.4582913]
[1772925646589,0.002,1970.5,1970.3,1.72711748]
[1772925646892,0.002,1970.5,1970.3,0.4582913]
[1772925647097,0.002,1970.5,1970.3,1.72712921]
[1772925647594,0.002,1970.5,1970.3,0.4582913]
[1772925650173,0.002,1970.5,1970.3,1.72712259]
[1772925653054,0.002,1970.5,1970.3,0.4582913]
[1772925655569,0.002,1970.5,1970.3,1.72713347]
[1772925655880,0.002,1970.5,1970.4,0.4582913]
[1772925656280,0.002,1970.5,1970.3,1.72713347]
[1772925659680,0.002,1970.5,1970.4,0.001]
[1772925660066,0.002,1970.5,1970.4,0.4592913]
[1772925661466,0.002,1970.5,1970.4,0.001]
[1772925662589,0.46334444,1970.5,1970.2,0.001]
[1772925663896,0.002,1970.5,1970.2,0.48292837]
[1772925666399,0.002,1970.5,1970.3,1.75077067]
[1772925667800,0.002,1970.5,1970.3,0.48192837]
[1772925669300,0.002,1970.5,1970.3,1.75072805]
[1772925669501,0.002,1970.5,1970.3,1.75077036]
[1772925673184,0.002,1970.5,1970.4,0.001]
[1772925673389,0.002,1970.5,1970.4,0.48292837]
[1772925673596,0.002,1970.6,1970.4,0.48292837]
[1772925675016,0.002,1970.6,1970.4,1.75168884]
[1772925676205,1.26845858,1970.9,1970.4,1.75168884]
[1772925676206,0.46134444,1970.9,1970.5,0.48192837]
[1772925676409,1.24363019,1971.0,1970.5,0.48192837]
[1772925676914,0.46134444,1970.9,1970.5,0.48192837]
[1772925677274,0.78228575,1971.0,1970.6,1.76864913]
[1772925677671,0.78228575,1971.0,1970.6,0.49999999]
[1772925678070,0.15628,1971.4,1971.1,0.48192837]
[1772925678872,0.35628,1971.4,1971.1,0.48192837]
[1772925679295,0.2,1971.3,1970.9,1.286]
[1772925679479,0.2,1971.3,1970.6,0.48192837]
[1772925679680,0.2,1971.3,1970.7,0.48192837]
[1772925681615,0.2,1971.1,1970.8,0.48192837]
[1772925681919,1.26823798,1971.3,1970.8,0.48192837]
[1772925682117,1.46823798,1971.3,1970.8,0.48192837]
[1772925682617,0.2,1971.2,1970.8,0.48192837]
[1772925684118,1.46828389,1971.2,1970.8,0.48192837]
[1772925684612,0.2,1971.1,1970.8,0.48192837]
[1772925684814,0.2,1971.1,1970.5,1.75058341]
[1772925685017,0.2,1971.1,1970.5,0.48192837]
[1772925685310,0.2,1971.1,1970.7,0.001]
[1772925686421,0.2,1970.9,1970.7,0.001]
[1772925688717,1.46848632,1970.9,1970.7,0.001]
[1772925689528,0.2,1970.8,1970.7,0.001]
[1772925689706,0.2,1970.9,1970.7,0.001]
[1772925690698,1.46845676,1970.9,1970.7,0.001]
[1772925690905,1.46845878,1970.9,1970.7,0.001]
[1772925691295,5.07345117,1971.1,1970.7,0.001]
[1772925691296,1.46835635,1971.1,1970.7,0.48292837]
[1772925691498,0.2,1971.0,1970.7,0.48292837]
[1772925692319,0.2,1971.0,1970.7,0.001]
[1772925692698,1.46844333,1971.0,1970.7,0.001]
[1772925693728,1.46839833,1971.0,1970.7,0.47938095]
[1772925694321,0.2,1971.0,1970.7,0.47938095]
[1772925694519,1.46840277,1971.0,1970.7,0.47938095]
[1772925695831,1.26840277,1971.0,1970.7,0.47938095]
[1772925697125,1.46840277,1971.0,1970.7,0.47938095]
[1772925698626,0.2,1970.9,1970.7,0.001]
[1772925700004,0.2,1970.9,1970.8,0.001]
[1772925700224,0.202,1970.9,1970.8,0.001]
[1772925700395,1.47045603,1970.9,1970.8,0.001]
[1772925700596,0.202,1970.9,1970.8,0.001]
[1772925702118,1.47045603,1970.9,1970.8,0.001]
[1772925702304,1.66837478,1971.1,1970.8,0.001]
[1772925702731,0.4,1971.0,1970.8,0.001]
[1772925704835,1.66841155,1971.0,1970.8,0.001]
[1772925705216,0.4,1971.0,1970.8,0.001]
[1772925705417,1.66840654,1971.0,1970.8,0.001]
[1772925705737,1.66839502,1971.0,1970.8,0.001]
[1772925713351,1.66839502,1971.0,1970.9,0.001]
[1772925713946,1.67039502,1971.0,1970.9,0.001]
[1772925717038,0.002,1971.0,1970.9,0.47938095]
[1772925717552,1.27039167,1971.0,1970.9,0.001]
[1772925725777,1.7515247,1972.4,1971.2,0.49669849]
[1772925725973,0.48399028,1972.3,1971.2,0.49669849]
[1772925728166,1.75154895,1972.3,1971.3,1.26819865]
[1772925728353,0.48399028,1972.2,1971.4,0.49669849]
[1772925730769,1.75165246,1972.2,1971.6,0.49669849]
[1772925731857,1.75160085,1972.3,1971.6,0.49669849]
[1772925732161,0.48399028,1972.2,1971.6,0.49669849]
[1772925733054,0.36378194,1972.6,1971.8,0.49669849]
[1772925733259,1.75122466,1972.8,1971.8,0.49669849]
[1772925733461,0.48399028,1972.7,1971.8,0.49669849]
[1772925737659,1.75135315,1972.6,1971.9,1.26781276]
[1772925737860,1.75135315,1972.6,1972.0,0.49669849]
[1772925738588,1.26736287,1972.6,1972.0,0.49669849]
[1772925738794,0.48399028,1972.5,1971.4,0.49669849]
[1772925739961,0.48399028,1972.3,1971.6,0.49669849]
[1772925742801,0.48399028,1972.1,1971.6,0.49669849]
[1772925743095,0.48399028,1972.1,1971.2,0.49669849]
[1772925744902,0.48399028,1971.9,1971.2,0.49669849]
[1772925746597,0.48399028,1971.9,1971.1,0.49669849]
[1772925746802,1.2677262,1972.1,1971.2,0.49669849]
[1772925747001,5.07072167,1972.2,1971.4,0.49669849]
[1772925747002,1.26781276,1971.9,1971.4,0.49669849]
[1772925747703,1.75180304,1971.9,1971.4,0.49669849]
[1772925749604,0.48399028,1971.9,1971.5,0.49669849]
[1772925749782,1.75180781,1971.9,1971.5,0.49669849]
[1772925753711,1.75180781,1971.9,1971.6,0.001]
[1772925762601,1.75180557,1971.9,1971.6,0.45915944]
[1772925762805,1.26781529,1971.9,1971.6,0.45915944]
[1772925763219,1.75298288,1972.0,1971.6,0.45915944]
[1772925767403,0.002,1971.9,1971.6,0.45915944]
[1772925769732,0.002,1971.9,1971.7,0.45815944]
[1772925772419,0.002,1971.9,1971.8,0.45815944]
[1772925774415,0.002,1972.0,1971.9,0.45815944]
[1772925776118,1.75277904,1972.3,1971.8,0.45815944]
[1772925776694,0.48519432,1972.2,1971.7,0.45815944]
[1772925779428,1.26768419,1972.1,1971.7,0.45815944]
[1772925780328,1.26768419,1972.1,1971.8,0.45815944]
[1772925781197,0.47774096,1972.1,1971.8,0.45815944]
[1772925781508,1.74543336,1972.1,1971.8,0.45815944]
[1772925781698,1.74543336,1972.1,1971.7,0.48733847]
[1772925781699,0.47774096,1972.0,1971.7,0.48733847]
[1772925781907,0.47774096,1972.0,1971.7,0.001]
[1772925784319,1.26781276,1971.9,1971.7,0.001]
[1772925784513,0.4765284,1971.8,1971.7,0.001]
[1772925788637,0.4765284,1971.7,1971.5,0.001]
[1772925790726,1.74448021,1971.7,1971.5,0.001]
[1772925791624,1.26795181,1971.7,1971.5,0.001]
[1772925791809,0.4765284,1971.6,1971.5,0.001]
[1772925793232,1.74453408,1971.6,1971.5,0.001]
[1772925794942,0.4765284,1971.6,1971.5,0.001]
[1772925795330,1.74453408,1971.6,1971.5,0.001]
[1772925802933,0.4765284,1971.5,1971.4,0.001]
[1772925805052,1.74459839,1971.5,1971.4,0.001]
[1772925805550,3.2445797,1971.6,1971.4,0.001]
[1772925807256,0.4765284,1971.5,1971.4,0.001]
[1772925809056,1.74459839,1971.5,1971.4,0.001]
[1772925809653,1.74659839,1971.5,1971.4,0.001]
[1772925812869,0.002,1971.5,1971.4,0.46283338]
[1772925823855,0.002,1971.6,1971.5,0.46183338]
[1772925835987,5.002,1971.6,1971.5,0.46183338]
[1772925836700,5.002,1971.6,1971.5,0.46283338]
[1772925843408,4.802,1971.6,1971.5,0.45567813]
[1772925849308,4.804,1971.6,1971.5,0.45567813]
[1772925866944,4.804,1971.6,1971.4,0.001]
[1772925868844,5.28245161,1971.6,1971.4,0.001]
[1772925872666,5.28245161,1971.6,1971.5,0.001]
[1772925873961,4.804,1971.6,1971.5,0.001]
[1772925874941,5.26691321,1971.6,1971.5,0.001]
[1772925879071,4.804,1971.6,1971.5,0.001]
[1772925893976,4.804,1971.6,1971.5,0.4619106]
[1772925894463,0.002,1971.7,1971.5,0.4619106]
[1772925894663,1.551,1971.8,1971.6,0.4609106]
[1772925896162,1.551,1971.8,1971.6,0.4619106]
[1772925896390,0.002,1971.7,1971.6,0.4619106]
[1772925896892,0.91589899,1971.8,1971.6,0.4619106]
[1772925899001,1.73271347,1972.0,1971.6,0.4619106]
[1772925900098,1.73270188,1972.0,1971.6,0.4619106]
[1772925900796,1.73266898,1972.0,1971.7,0.4609106]
[1772925900988,1.73267466,1972.0,1971.7,0.4609106]
[1772925906501,1.26976145,1972.0,1971.7,0.4609106]
[1772925907708,0.002,1972.0,1971.7,0.4609106]
[1772925908209,0.002,1972.0,1971.8,0.001]
[1772925908506,0.46602522,1972.3,1971.9,0.48944081]
[1772925908901,0.002,1972.2,1972.0,0.48944081]
[1772925911208,0.002,1972.2,1972.0,1.26774757]
[1772925911405,0.002,1972.2,1972.1,0.48944081]
[1772925914215,0.002,1972.2,1972.1,1.757125]
[1772925914513,0.002,1972.2,1972.1,0.48944081]
[1772925914691,0.002,1972.2,1972.1,1.757125]
[1772925915313,0.46602522,1972.9,1972.2,0.48944081]
[1772925916596,1.7332596,1972.8,1972.4,0.48944081]
[1772925918297,0.46602522,1972.6,1971.9,0.1167168]
[1772925918496,0.46602522,1972.4,1971.9,1.38451723]
[1772925918693,0.46602522,1972.4,1971.9,1.87395804]
[1772925919192,0.46602522,1972.4,1971.9,0.60615761]
[1772925919816,0.46602522,1972.4,1971.9,0.1167168]
[1772925920217,0.46602522,1972.4,1971.9,1e-08]
[1772925920899,0.46602522,1972.2,1971.9,1e-08]
[1772925922735,0.46602522,1972.0,1971.9,1e-08]
[1772925923246,0.46602522,1972.0,1971.7,0.001]
[1772925925435,0.46602522,1971.8,1971.7,0.001]
[1772925927725,1.73390228,1971.8,1971.7,0.001]
[1772925929435,0.46602522,1972.3,1971.8,0.48944081]
[1772925929646,0.46602522,1972.3,1971.7,0.49044081]
[1772925929812,0.46602522,1972.1,1971.7,0.001]
[1772925933206,0.47747881,1971.9,1971.8,0.001]
[1772925937140,1.74529157,1971.9,1971.8,0.001]
[1772925937310,0.47747881,1971.9,1971.8,0.001]
[1772925937821,1.74529157,1971.9,1971.8,0.001]
[1772925938618,0.47747881,1971.8,1971.6,0.001]
[1772925939339,1.74542018,1971.7,1971.6,0.001]
[1772925943537,1.74531778,1971.9,1971.6,0.001]
[1772925943744,3.30531778,1971.9,1971.6,0.001]
[1772925945545,3.30531778,1971.9,1971.7,0.001]
[1772925947049,1.74531778,1971.9,1971.7,0.001]
[1772925950073,1.26783897,1971.9,1971.7,0.46026701]
[1772925955850,1.74531778,1971.9,1971.6,0.46026701]
[1772925957164,1.74531778,1971.9,1971.6,0.001]
[1772925958972,1.74531778,1971.9,1971.8,0.001]
[1772925959669,0.47747881,1971.8,1971.4,0.46026701]
[1772925959875,0.47747881,1971.6,1971.4,0.001]
[1772925961040,1.26806999,1971.5,1971.4,0.001]
[1772925961639,0.4922672,1971.4,1971.2,0.001]
[1772925964460,1.26819865,1971.3,1971.2,0.001]
[1772925966273,1.26819865,1971.3,1971.2,0.47356367]
[1772925967083,1.26819865,1971.3,1971.2,1e-08]
[1772925968674,1.26819865,1971.3,1971.1,0.09262435]
[1772925969473,0.48446007,1971.7,1971.2,0.09262435]
[1772925970582,0.48446007,1971.7,1971.0,0.173469]
[1772925970874,0.48446007,1971.7,1971.3,0.001]
[1772925971482,1.26800568,1971.6,1971.3,0.001]
[1772925971689,0.48446007,1971.5,1971.3,0.001]
[1772925971870,0.002,1971.4,1971.3,0.001]
[1772925972185,0.48646007,1971.4,1971.3,0.001]
[1772925973868,1.75459439,1971.4,1971.3,0.001]
[1772925979085,1.75459439,1971.4,1970.9,0.09362435]
[1772925979086,0.48446007,1971.3,1970.9,0.09362435]
[1772925979287,1.75272305,1971.2,1970.9,0.09462435]
[1772925979890,1.26826298,1971.2,1970.9,0.09462435]
[1772925983893,1.26826298,1971.2,1971.0,0.001]
[1772925989365,1.75272305,1971.2,1971.0,0.001]
[1772925995702,1.75272305,1971.2,1971.1,0.001]
[1772926005821,0.5,1971.1,1970.8,0.001]
[1772926007625,0.502,1971.1,1971.0,0.001]
[1772926007918,0.502,1971.1,1970.8,0.001]
[1772926007919,0.5,1971.0,1970.8,0.001]
[1772926010725,2.08095603,1970.9,1970.8,0.001]
[1772926010925,2.08095603,1970.9,1970.6,0.001]
[1772926010926,0.8125,1970.8,1970.6,0.001]
[1772926011232,0.8125,1970.8,1970.4,0.001]
[1772926013329,0.8125,1970.8,1970.4,0.001]
[1772926013628,0.8125,1970.6,1970.4,0.001]
[1772926015405,1.26871352,1970.5,1970.4,0.001]
[1772926015810,0.8125,1970.4,1970.2,0.001]
[1772926016035,0.8125,1970.4,1970.0,0.00253886]
[1772926018337,1.2688423,1970.3,1970.0,0.00253886]
[1772926020435,1.2688423,1970.3,1970.2,0.001]
[1772926020607,0.8125,1970.6,1970.2,0.001]
[1772926020910,5.88701151,1970.7,1970.2,0.001]
[1772926021328,0.8125,1970.6,1970.2,0.001]
[1772926024140,1.26871352,1970.5,1970.2,0.001]
[1772926029042,0.8125,1970.5,1970.2,0.001]
[1772926031260,2.08126912,1970.5,1970.2,0.001]
[1772926032337,2.08326912,1970.5,1970.2,0.001]
[1772926035048,0.002,1970.5,1970.2,0.001]
[1772926035219,1.27071803,1970.5,1970.2,0.001]
[1772926037124,2.08321803,1970.5,1970.2,0.001]
[1772926044370,0.002,1970.4,1970.2,0.001]
[1772926047465,0.8145,1970.4,1970.2,0.001]
[1772926048763,2.08330329,1970.4,1970.2,0.001]
[1772926051763,0.8145,1970.4,1970.2,0.001]
[1772926051960,0.002,1970.4,1970.2,0.001]
[1772926056363,0.002,1970.3,1970.2,0.001]
[1772926074384,0.002,1970.6,1970.2,0.001]
[1772926074555,0.8145,1970.7,1970.2,0.001]
[1772926074556,0.002,1970.7,1970.2,0.001]
[1772926075473,0.8145,1970.7,1970.2,0.001]
[1772926078558,0.002,1970.6,1970.2,0.001]
[1772926081984,0.8145,1970.6,1970.2,0.001]
[1772926084165,0.8125,1970.4,1970.2,0.001]
[1772926090263,0.8125,1970.4,1970.3,0.001]
[1772926115197,0.002,1970.5,1970.3,0.001]
[1772926115598,0.8145,1970.5,1970.3,0.001]
[1772926122215,0.002,1970.5,1970.3,0.001]
[1772926122422,0.002,1970.6,1970.3,0.001]
[1772926126523,0.002,1970.6,1970.4,0.001]
[1772926127022,0.002,1970.5,1970.4,0.001]
[1772926130227,0.46581387,1970.8,1970.4,0.18849999]
[1772926130600,0.002,1970.8,1970.4,0.18849999]
[1772926133441,0.002,1970.8,1970.5,1.45621351]
[1772926134123,0.002,1970.8,1970.5,1.26871352]
[1772926134331,0.002,1970.8,1970.5,1.45621351]
[1772926134531,0.002,1970.8,1970.6,0.18749999]
[1772926138638,0.002,1970.8,1970.6,1.45614058]
[1772926139138,0.002,1970.7,1970.6,1.45614058]
[1772926142939,0.002,1970.7,1970.6,0.18749999]
[1772926143241,0.002,1970.7,1970.6,1.45614913]
[1772926149765,0.002,1971.0,1970.7,0.18549999]
[1772926149938,1.73010127,1971.2,1970.7,0.18549999]
[1772926150261,0.45983282,1971.1,1970.7,0.18549999]
[1772926150496,0.45983282,1971.1,1970.7,0.18649999]
[1772926151251,0.002,1970.9,1970.7,0.18649999]
[1772926151964,0.002,1970.9,1970.8,0.18549999]
[1772926152838,1.27026845,1971.2,1970.8,0.18549999]
[1772926152839,0.002,1971.2,1970.8,0.18549999]
[1772926153539,0.46183282,1971.2,1970.8,0.18549999]
[1772926154069,0.46183282,1971.2,1970.8,1.45396382]
[1772926154867,0.46183282,1971.2,1970.8,1.26846383]
[1772926155040,0.46183282,1971.2,1970.9,0.18549999]
[1772926156162,0.46183282,1971.2,1970.7,1.26953366]
[1772926156365,1.73009733,1971.2,1970.8,0.18549999]
[1772926158445,0.46183282,1971.2,1970.8,1.45401811]
[1772926158643,0.46183282,1971.2,1970.9,0.18549999]
[1772926160751,0.002,1971.2,1971.0,0.45866202]
[1772926162775,0.002,1971.1,1971.0,0.45866202]
[1772926175476,0.002,1971.2,1971.0,0.45866202]
[1772926175694,0.002,1971.2,1970.9,0.001]
[1772926175695,0.48383384,1971.2,1970.9,0.001]
[1772926176798,0.48383384,1971.2,1970.9,0.46900027]
[1772926177800,1.27020946,1971.3,1971.0,0.46800027]
[1772926178491,0.48583384,1971.3,1971.0,0.46800027]
[1772926179900,1.75406749,1971.3,1971.0,0.46800027]
[1772926180197,1.75407025,1971.3,1971.0,0.46800027]
[1772926180401,0.48383384,1971.2,1970.9,0.46900027]
[1772926182075,1.27023641,1971.3,1970.9,0.46900027]
[1772926182272,1.75407025,1971.3,1970.9,0.46900027]
[1772926184100,0.48583384,1971.3,1970.9,0.46900027]
[1772926184288,0.48583384,1971.3,1971.0,0.46800027]
[1772926184601,0.48383384,1971.1,1970.8,0.001]
[1772926185094,0.48383384,1971.1,1970.8,0.46900027]
[1772926185804,0.48383384,1971.1,1970.8,0.001]
[1772926186701,0.48383384,1971.1,1971.0,0.001]
[1772926187009,1.75216116,1971.1,1971.0,0.001]
[1772926188720,0.48383384,1971.1,1971.0,0.001]
[1772926192116,1.75216116,1971.1,1971.0,0.001]
[1772926194127,0.48383384,1971.1,1971.0,0.001]
[1772926194710,1.27026984,1971.2,1971.0,0.001]
[1772926194900,1.75410368,1971.2,1971.0,0.001]
[1772926196318,0.48583384,1971.2,1971.0,0.001]
[1772926196613,1.75409994,1971.2,1971.0,0.001]
[1772926196995,0.48383384,1971.1,1971.0,0.001]
[1772926198697,0.48583384,1971.2,1971.0,0.001]
[1772926199011,0.002,1971.1,1971.0,0.001]
[1772926200013,0.002,1971.1,1971.0,0.46900027]
[1772926201892,0.002,1971.1,1971.0,0.001]
[1772926202598,0.002,1971.1,1970.9,0.001]
[1772926202599,0.47122865,1971.1,1970.9,0.001]
[1772926204198,0.46922865,1971.0,1970.9,0.001]
[1772926205498,0.47122865,1971.1,1970.9,0.001]
[1772926209914,0.41122865,1971.1,1970.9,0.001]
[1772926210116,0.47122865,1971.2,1970.9,0.001]
[1772926210509,0.002,1971.2,1971.0,0.4996799]
[1772926210926,0.002,1971.2,1971.0,0.5006799]
[1772926211639,0.002,1971.5,1971.2,0.4996799]
[1772926211799,0.002,1971.6,1971.2,0.4996799]
[1772926214232,0.002,1971.6,1971.4,0.4996799]
[1772926214436,0.002,1971.6,1971.2,1.76789152]
[1772926214640,0.47122865,1971.6,1971.2,0.4996799]
[1772926214834,0.47122865,1971.6,1971.1,0.4996799]
[1772926215036,0.47122865,1971.6,1971.0,1.76902383]
[1772926215410,0.47122865,1971.6,1971.1,0.4996799]
[1772926216336,0.46922865,1971.4,1971.1,0.4996799]
[1772926220835,1.73729864,1971.5,1971.1,1.76800703]
[1772926221012,0.002,1971.6,1971.2,0.4996799]
[1772926221419,1.27000623,1971.6,1971.2,0.4996799]
[1772926221735,0.002,1971.6,1971.2,0.4996799]
[1772926221936,0.47122865,1971.6,1971.2,0.4996799]
[1772926222607,1.73924239,1971.6,1971.2,0.4996799]
[1772926223028,1.73924239,1971.6,1971.2,0.5006799]
[1772926223223,0.002,1971.5,1971.2,0.5006799]
[1772926224333,0.002,1971.5,1971.2,1.76894133]
[1772926224739,0.002,1971.5,1971.3,0.4996799]
[1772926232444,1.26796703,1971.7,1971.3,0.4996799]
[1772926232746,1.74745059,1971.7,1971.3,0.4996799]
[1772926232928,0.47948356,1971.6,1971.2,1.26925952]
[1772926233123,0.47948356,1971.6,1971.2,1.72707511]
[1772926233345,1.74939345,1971.8,1971.3,0.45781559]
[1772926233547,0.00353886,1972.0,1971.3,0.45781559]
[1772926233746,0.00353886,1972.0,1971.5,0.45781559]
[1772926233955,0.00353886,1972.0,1971.4,1.26813432]
[1772926233956,1.74904936,1972.3,1972.0,0.45781559]
[1772926235120,0.48148356,1972.3,1972.0,0.45781559]
[1772926235325,1.74904028,1972.3,1972.0,0.45781559]
[1772926236924,0.48148356,1972.3,1972.0,0.45781559]
[1772926237746,0.48148356,1972.3,1971.8,0.45781559]
[1772926237747,0.47948356,1972.2,1971.8,0.45781559]
[1772926240582,1.74710823,1972.2,1971.8,0.45781559]
[1772926243044,0.002,1972.3,1971.9,0.45781559]
[1772926243348,1.2695598,1972.3,1971.9,0.45781559]
[1772926243527,1.74904336,1972.3,1971.9,0.45781559]
[1772926245256,1.74904336,1972.3,1971.9,1.72562237]
[1772926245734,1.74904336,1972.3,1971.9,0.45781559]
[1772926246673,1.74904336,1972.3,1971.9,1.7256213]
[1772926246963,0.48148356,1972.3,1971.9,1.7256213]
[1772926247553,0.002,1972.2,1971.9,1.26780571]
[1772926247756,0.002,1972.2,1972.0,0.45781559]
[1772926259263,0.48148356,1972.2,1971.9,1.232]
[1772926259985,0.48148356,1972.2,1971.9,2.95761859]
[1772926260185,0.48148356,1972.2,1972.1,0.001]
[1772926263885,0.4801229,1972.1,1972.0,0.001]
[1772926265079,1.74974281,1972.2,1972.0,0.001]
[1772926267567,0.4821229,1972.2,1972.0,0.001]
[1772926268288,0.002,1972.3,1972.0,0.48369026]
[1772926268663,1.26955964,1972.3,1972.0,0.48369026]
[1772926269386,1.49995924,1972.3,1972.0,0.48369026]
[1772926270295,0.2323996,1972.3,1972.0,0.48369026]
[1772926270500,1.49996664,1972.3,1972.0,0.48369026]
[1772926271595,1.26956704,1972.3,1972.0,0.48369026]
[1772926272863,0.002,1972.3,1972.1,0.001]
[1772926273168,0.002,1972.2,1972.1,0.001]
[1772926273695,0.002,1972.2,1972.1,0.48369026]
[1772926275385,0.002,1972.5,1972.2,0.48269026]
[1772926276077,1.49970879,1972.7,1972.2,0.48269026]
[1772926276678,1.49971239,1972.7,1972.4,0.48269026]
[1772926279099,1.49971239,1972.7,1972.2,0.48269026]
[1772926279100,0.2323996,1972.6,1972.2,0.48269026]
[1772926280803,1.4997685,1972.6,1972.2,0.48269026]
[1772926281003,1.4997685,1972.6,1972.2,1.75030558]
[1772926281176,0.2323996,1972.6,1972.2,1.75030558]
[1772926281679,1.49976359,1972.6,1972.3,0.48269026]
[1772926282508,0.2323996,1972.6,1972.3,0.48269026]
[1772926282688,1.49976747,1972.6,1972.3,0.48269026]
[1772926283798,0.2323996,1972.6,1972.3,0.48269026]
[1772926285209,0.2323996,1972.6,1972.4,0.001]
[1772926285387,0.2343996,1972.6,1972.4,0.001]
[1772926285789,1.50177233,1972.6,1972.4,0.001]
[1772926285997,0.2343996,1972.6,1972.4,0.001]
[1772926286888,1.50176742,1972.6,1972.4,0.001]
[1772926287412,0.2343996,1972.6,1972.4,0.001]
[1772926287703,0.002,1972.6,1972.4,0.48369026]
[1772926297684,0.002,1972.6,1972.5,0.001]
[1772926306888,0.24369966,1972.6,1972.5,0.001]
[1772926308515,1.51106253,1972.6,1972.5,0.001]
[1772926312424,0.49928787,1972.5,1972.2,0.001]
[1772926312731,0.49928787,1972.3,1972.0,0.06586382]
[1772926313031,0.49928787,1972.3,1972.0,0.52390931]
[1772926314839,0.49928787,1972.1,1971.8,0.45904549]
[1772926315009,0.49928787,1972.1,1971.8,0.001]
[1772926316895,0.49928787,1972.0,1971.8,0.001]
[1772926319642,1.76710063,1971.9,1971.8,0.001]
[1772926320911,0.49928787,1971.9,1971.8,0.001]
[1772926326359,1.76710063,1971.9,1971.8,0.001]
[1772926328855,0.49942754,1971.8,1971.6,0.001]
[1772926330433,1.26794137,1971.7,1971.6,0.001]
[1772926331250,1.76734599,1971.8,1971.6,0.001]
[1772926334045,0.49942754,1971.7,1971.6,0.001]
[1772926334772,1.76734599,1971.8,1971.6,0.001]
[1772926334943,1.76730834,1971.8,1971.6,0.001]
[1772926335329,1.2678808,1971.8,1971.6,0.001]
[1772926335533,1.76929103,1971.9,1971.6,0.001]
[1772926335766,0.49942754,1971.8,1971.6,0.001]
[1772926336970,1.26981823,1971.9,1971.6,0.49440198]
[1772926337561,1.76924577,1971.9,1971.6,0.49440198]
[1772926346880,1.76924577,1971.9,1971.7,0.001]
[1772926347084,0.002,1971.8,1971.7,0.001]
[1772926357767,1.76057624,1971.8,1971.7,0.001]
[1772926364712,1.26987706,1971.8,1971.7,0.001]
[1772926370018,1.26987706,1971.8,1971.5,0.48157272]
[1772926373621,0.002,1971.8,1971.5,0.48157272]
[1772926374192,0.002,1971.8,1971.6,0.001]
[1772926374391,0.002,1971.7,1971.6,0.001]
[1772926383431,0.002,1971.9,1971.7,0.47260564]
[1772926383616,1.26981625,1971.9,1971.7,0.47260564]
[1772926383924,1.76816873,1971.9,1971.6,0.47360564]
[1772926385930,1.76816873,1971.9,1971.7,0.001]
[1772926386436,0.002,1971.8,1971.7,0.001]
[1772926413581,0.002,1971.8,1971.7,0.4993093]
[1772926413781,0.002,1972.0,1971.8,0.4983093]
[1772926416501,0.45880863,1972.0,1971.7,0.001]
[1772926417860,0.45680863,1971.8,1971.7,0.001]
[1772926418061,0.45680863,1971.8,1971.5,0.001]
[1772926418263,0.45680863,1971.8,1971.3,0.001]